fUSD/lending_fUSD_20240420
["ID","MTS","AMOUNT","RATE_DAILY","PERIOD"]
[323029435,1713605432842,-3727.455,0.00014498,2]
[323029436,1713605432851,-10756.22633904,0.00014498,2]
[323029437,1713605432891,-1054.71998718,0.00014498,2]
[323029438,1713605432902,-477.61251511,0.00014498,2]
[323029444,1713605437741,-16793.97775867,0.00014498,2]
[323029445,1713605437750,-2412.84579686,0.00014499,2]
[323029446,1713605437760,-687.39,0.00014548,2]
[323029447,1713605437769,-150.68,0.00014548,2]
[323029448,1713605437779,-684.33,0.00014548,2]
[323029449,1713605437789,-291.73264187,0.00014597,2]
[323029450,1713605437798,-450.55130149,0.00014597,2]
[323029451,1713605437807,-44017.38687325,0.00014598,2]
[323029452,1713605437819,-468.50164004,0.00014598,2]
[323029453,1713605437852,-162976.29418671,0.00014598,2]
[323029454,1713605437861,-1882.4735,0.00014598,2]
[323029455,1713605437870,-1000.0,0.00014598,2]
[323029456,1713605437879,-7500.0,0.00014598,2]
[323029457,1713605437888,-155.23150938,0.00014598,2]
[323029458,1713605437897,-450.55130149,0.00014598,2]
[323029459,1713605437906,-500.0,0.00014599,2]
[323029460,1713605437915,-26306.2924,0.00014599,2]
[323029461,1713605437925,-10124.1012,0.00014599,2]
[323029462,1713605437933,-1863.8211,0.00014599,2]
[323029463,1713605437943,-450.55130149,0.00014599,2]
[323029464,1713605437952,-517.0,0.0001463,2]
[323029465,1713605437962,-162.08,0.00014687,2]
[323029466,1713605437971,-179.60074647,0.00014687,2]
[323029467,1713605437980,-162.08,0.00014689,2]
[323029468,1713605437989,-174.32406264,0.00014697,2]
[323029469,1713605437998,-212.21332394,0.00014697,2]
[323029470,1713605438007,-2353.32137406,0.00014697,2]
[323029471,1713605438017,-167.44367917,0.00014697,2]
[323029472,1713605438026,-4330.05700395,0.00014697,2]
[323029473,1713605438035,-721.10660169,0.00014697,2]
[323029474,1713605438044,-684.94443357,0.00014697,2]
[323029475,1713605438054,-24941.79,0.00014697,2]
[323029476,1713605438063,-24941.79,0.00014697,2]
[323029477,1713605438072,-24941.79,0.00014697,2]
[323029478,1713605438081,-24941.79,0.00014697,2]
[323029479,1713605438090,-24941.79,0.00014697,2]
[323029480,1713605438100,-24941.79,0.00014697,2]
[323029481,1713605438109,-24941.79,0.00014697,2]
[323029482,1713605438119,-24941.79,0.00014697,2]
[323029483,1713605438128,-24941.79,0.00014697,2]
[323029484,1713605438138,-24941.79,0.00014697,2]
[323029485,1713605438147,-24941.79,0.00014697,2]
[323029486,1713605438156,-24941.79,0.00014697,2]
[323029488,1713605438165,-24941.79,0.00014697,2]
[323029489,1713605438175,-24941.79,0.00014697,2]
[323029490,1713605438184,-24941.79,0.00014697,2]
[323029491,1713605438193,-24941.79,0.00014697,2]
[323029492,1713605438202,-24941.79,0.00014697,2]
[323029493,1713605438212,-24941.79,0.00014697,2]
[323029494,1713605438221,-24941.79,0.00014697,2]
[323029495,1713605438230,-24941.79,0.00014697,2]
[323029496,1713605438239,-24941.79,0.00014697,2]
[323029497,1713605438248,-24941.79,0.00014697,2]
[323029498,1713605438258,-24941.79,0.00014697,2]
[323029499,1713605438266,-24941.9494744,0.00014697,2]
[323029500,1713605438275,-300.0,0.00014697,2]
[323029501,1713605438284,-300.0,0.00014697,2]
[323029502,1713605438293,-594.4950471,0.00014698,2]
[323029503,1713605438303,-526311.80240832,0.00014698,2]
[323029504,1713605438313,-245000.0,0.00014699,2]
[323029505,1713605438322,-1000.0,0.00014699,2]
[323029506,1713605438331,-2412.84579683,0.00014699,2]
[323029507,1713605438340,-174.20494602,0.0001475,2]
[323029508,1713605438349,-7722.34442764,0.0001475,2]
[323029509,1713605438359,-447.09963008,0.0001475,2]
[323029510,1713605438368,-155.0,0.00014755,2]
[323029511,1713605438380,-610.644333,0.00014795,2]
[323029512,1713605438390,-727.09,0.00014832,2]
[323029513,1713605438399,-162.08,0.0001484,2]
[323029514,1713605438408,-179.60074647,0.0001484,2]
[323029515,1713605438419,-300.0,0.00014849,2]
[323029516,1713605438429,-366.0,0.00014849,2]
[323029517,1713605438439,-162761.051,0.0001485,2]
[323029518,1713605438449,-162761.052,0.0001485,2]
[323029519,1713605438461,-162761.052,0.0001485,2]
[323029520,1713605438470,-162761.052,0.0001485,2]
[323029521,1713605438480,-162761.052,0.0001485,2]
[323029522,1713605438489,-151.0,0.0001485,2]
[323029523,1713605438497,-151.0,0.0001485,2]
[323029524,1713605438506,-155.312991,0.0001485,2]
[323029525,1713605438515,-155.852947,0.0001485,2]
[323029526,1713605438524,-151.0,0.0001485,2]
[323029527,1713605438533,-151.0,0.0001485,2]
[323029528,1713605438543,-151.0,0.0001485,2]
[323029529,1713605438551,-151.0,0.0001485,2]
[323029530,1713605438560,-151.0,0.0001485,2]
[323029531,1713605438569,-151.702854,0.0001485,2]
[323029532,1713605438579,-151.0,0.0001485,2]
[323029533,1713605438588,-151.0,0.0001485,2]
[323029534,1713605438597,-151.0,0.0001485,2]
[323029535,1713605438606,-151.0,0.0001485,2]
[323029536,1713605438615,-151.0,0.0001485,2]
[323029537,1713605438624,-151.0,0.0001485,2]
[323029538,1713605438634,-151.0,0.0001485,2]
[323029539,1713605438643,-151.0,0.0001485,2]
[323029540,1713605438652,-151.0,0.0001485,2]
[323029541,1713605438661,-151.0,0.0001485,2]
[323029542,1713605438670,-178.005381,0.0001485,2]
[323029543,1713605438680,-151.0,0.0001485,2]
[323029544,1713605438688,-178.005381,0.0001485,2]
[323029545,1713605438698,-151.0,0.0001485,2]
[323029546,1713605438706,-399.177688,0.0001485,2]
[323029547,1713605438716,-151.0,0.0001485,2]
[323029548,1713605438725,-151.0,0.0001485,2]
[323029549,1713605438734,-399.177688,0.0001485,2]
[323029550,1713605438743,-151.0,0.0001485,2]
[323029551,1713605438752,-151.0,0.0001485,2]
[323029552,1713605438761,-151.0,0.0001485,2]
[323029553,1713605438770,-151.0,0.0001485,2]
[323029554,1713605438779,-152.595039,0.0001485,2]
[323029555,1713605438788,-151.0,0.0001485,2]
[323029556,1713605438797,-322.194178,0.0001485,2]
[323029557,1713605438806,-322.194178,0.0001485,2]
[323029558,1713605438815,-151.0,0.0001485,2]
[323029559,1713605438825,-203.455649,0.0001485,2]
[323029560,1713605438834,-203.455649,0.0001485,2]
[323029561,1713605438844,-2059.27704,0.0001485,2]
[323029562,1713605438853,-151.0,0.0001485,2]
[323029563,1713605438863,-151.0,0.0001485,2]
[323029564,1713605438872,-2059.27704,0.0001485,2]
[323029565,1713605438881,-151.0,0.0001485,2]
[323029566,1713605438891,-151.0,0.0001485,2]
[323029567,1713605438900,-155.508194,0.0001485,2]
[323029568,1713605438909,-1341.844691,0.0001485,2]
[323029569,1713605438919,-1341.844691,0.0001485,2]
[323029570,1713605438929,-177.440691,0.0001485,2]
[323029571,1713605438938,-177.440691,0.0001485,2]
[323029572,1713605438948,-1341.844691,0.0001485,2]
[323029573,1713605438957,-1341.844691,0.0001485,2]
[323029574,1713605438966,-177.440691,0.0001485,2]
[323029575,1713605438976,-177.440691,0.0001485,2]
[323029576,1713605438985,-151.0,0.0001485,2]
[323029577,1713605438995,-151.0,0.0001485,2]
[323029578,1713605439004,-151.0,0.0001485,2]
[323029579,1713605439014,-151.0,0.0001485,2]
[323029580,1713605439023,-154.801869,0.0001485,2]
[323029581,1713605439032,-151.0,0.0001485,2]
[323029582,1713605439041,-151.0,0.0001485,2]
[323029583,1713605439051,-50000.00000001,0.00014855,2]
[323029584,1713605439060,-4342.474,0.00014874,2]
[323029585,1713605439070,-541.0,0.00014874,2]
[323029586,1713605439080,-1228.0,0.00014874,2]
[323029587,1713605439089,-521.47876322,0.0001489,2]
[323029588,1713605439099,-892.2422,0.00014899,2]
[323029589,1713605439108,-2412.84579683,0.00014899,2]
[323029590,1713605439117,-180.21956279,0.000149,2]
[323029591,1713605439128,-300.0,0.00014952,2]
[323029592,1713605439138,-1000.0,0.00014968,2]
[323029593,1713605439147,-10000.0,0.00014968,2]
[323029594,1713605439157,-162.08,0.0001499,2]
[323029595,1713605439166,-179.60074647,0.0001499,2]
[323029596,1713605439175,-426.7849883,0.00014991,2]
[323029597,1713605439184,-1587.89610298,0.00014998,2]
[323029598,1713605439194,-209.04676738,0.00014998,2]
[323029599,1713605439204,-193.11993615,0.00014998,2]
[323029600,1713605439213,-267.10232057,0.00014998,2]
[323029601,1713605439222,-3429.97226145,0.00014998,2]
[323029602,1713605439231,-300.0,0.00014999,2]
[323029603,1713605439241,-1346339.70853878,0.00015,2]
[323029604,1713605439251,-587.17311841,0.00015,2]
[323029605,1713605439260,-2289.11504701,0.00015,2]
[323029606,1713605439268,-1000.0,0.00015,2]
[323029607,1713605439278,-1811.91678049,0.00015,2]
[323029608,1713605439287,-5000.0,0.00015,2]
[323029609,1713605439296,-104827.72789776,0.00015,2]
[323029610,1713605439314,-107811.89324591,0.00015,2]
[323029611,1713605439324,-97582.84545062,0.00015,2]
[323029612,1713605439333,-191.20345887,0.00015,2]
[323029613,1713605439344,-1474.54177032,0.00015,2]
[323029614,1713605439353,-257.9599885,0.00015,2]
[323029615,1713605439363,-659.003787,0.00015,2]
[323029616,1713605439372,-217.45669327,0.00015,2]
[323029617,1713605439383,-255.48454455,0.00015,2]
[323029618,1713605439394,-205.77957528,0.00015,2]
[323029619,1713605439403,-151.0,0.00015,2]
[323029620,1713605439412,-154.421693,0.00015,2]
[323029621,1713605439422,-152.586028,0.00015,2]
[323029622,1713605439432,-151.0,0.00015,2]
[323029623,1713605439441,-151.0,0.00015,2]
[323029624,1713605439452,-151.783869,0.00015,2]
[323029625,1713605439462,-151.0,0.00015,2]
[323029626,1713605439470,-151.0,0.00015,2]
[323029627,1713605439480,-156.19651,0.00015,2]
[323029628,1713605439489,-151.0,0.00015,2]
[323029629,1713605439498,-151.0,0.00015,2]
[323029630,1713605439507,-176.94494,0.00015,2]
[323029631,1713605439518,-151.0,0.00015,2]
[323029632,1713605439528,-151.0,0.00015,2]
[323029633,1713605439537,-151.0,0.00015,2]
[323029634,1713605439548,-151.0,0.00015,2]
[323029635,1713605439557,-151.0,0.00015,2]
[323029636,1713605439567,-151.0,0.00015,2]
[323029637,1713605439577,-151.0,0.00015,2]
[323029638,1713605439586,-151.0,0.00015,2]
[323029639,1713605439595,-151.0,0.00015,2]
[323029640,1713605439604,-151.0,0.00015,2]
[323029641,1713605439613,-151.0,0.00015,2]
[323029642,1713605439622,-151.0,0.00015,2]
[323029643,1713605439632,-151.0,0.00015,2]
[323029644,1713605439641,-151.0,0.00015,2]
[323029645,1713605439651,-151.0,0.00015,2]
[323029646,1713605439660,-151.0,0.00015,2]
[323029647,1713605439669,-151.0,0.00015,2]
[323029648,1713605439679,-151.0,0.00015,2]
[323029649,1713605439688,-151.0,0.00015,2]
[323029650,1713605439697,-151.0,0.00015,2]
[323029651,1713605439706,-178.005381,0.00015,2]
[323029652,1713605439716,-151.0,0.00015,2]
[323029653,1713605439725,-178.005381,0.00015,2]
[323029654,1713605439734,-151.0,0.00015,2]
[323029655,1713605439744,-399.177688,0.00015,2]
[323029656,1713605439753,-155.694803,0.00015,2]
[323029657,1713605439762,-151.0,0.00015,2]
[323029658,1713605439771,-399.177688,0.00015,2]
[323029659,1713605439780,-151.0,0.00015,2]
[323029660,1713605439789,-3000.0,0.00015,2]
[323029661,1713605439799,-151.0,0.00015,2]
[323029662,1713605439808,-151.0,0.00015,2]
[323029663,1713605439816,-151.0,0.00015,2]
[323029664,1713605439826,-156.988049,0.00015,2]
[323029665,1713605439836,-322.194178,0.00015,2]
[323029666,1713605439846,-322.194178,0.00015,2]
[323029667,1713605439856,-151.0,0.00015,2]
[323029668,1713605439866,-203.455649,0.00015,2]
[323029669,1713605439875,-203.455649,0.00015,2]
[323029670,1713605439885,-2059.27704,0.00015,2]
[323029671,1713605439894,-151.0,0.00015,2]
[323029672,1713605439904,-2059.27704,0.00015,2]
[323029673,1713605439912,-151.0,0.00015,2]
[323029674,1713605439921,-1341.844691,0.00015,2]
[323029675,1713605439930,-177.440691,0.00015,2]
[323029676,1713605439941,-1341.844691,0.00015,2]
[323029677,1713605439950,-177.440691,0.00015,2]
[323029678,1713605439959,-156.088673,0.00015,2]
[323029679,1713605439969,-260.813663,0.00015,2]
[323029680,1713605439978,-151.0,0.00015,2]
[323029681,1713605439987,-162.08,0.00015058,2]
[323029682,1713605439996,-500.0,0.00015068,2]
[323029683,1713605440006,-500.0,0.00015068,2]
[323029684,1713605440022,-500.0,0.00015068,2]
[323029685,1713605440034,-500.0,0.00015068,2]
[323029686,1713605440047,-500.0,0.00015068,2]
[323029687,1713605440060,-500.0,0.00015068,2]
[323029688,1713605440073,-500.0,0.00015068,2]
[323029689,1713605440083,-575.54,0.00015068,2]
[323029690,1713605440094,-840.64,0.00015068,2]
[323029692,1713605440107,-500.0,0.00015068,2]
[323029694,1713605440118,-603.21,0.00015068,2]
[323029696,1713605440130,-500.0,0.00015068,2]
[323029698,1713605440143,-286.28470656,0.00015068,2]
[323029701,1713605440155,-602.82804167,0.00015068,2]
[323029703,1713605440166,-500.0,0.00015068,2]
[323029705,1713605440178,-500.0,0.00015068,2]
[323029708,1713605440190,-500.0,0.00015068,2]
[323029710,1713605440199,-500.0,0.00015068,2]
[323029712,1713605440210,-572.46,0.00015068,2]
[323029714,1713605440222,-551.2,0.00015068,2]
[323029716,1713605440233,-500.0,0.00015068,2]
[323029719,1713605440245,-500.0,0.00015068,2]
[323029721,1713605440258,-500.0,0.00015068,2]
[323029723,1713605440269,-802.06,0.00015068,2]
[323029726,1713605440281,-500.0,0.00015068,2]
[323029728,1713605440293,-500.0,0.00015068,2]
[323029730,1713605440304,-500.0,0.00015068,2]
[323029732,1713605440314,-751.77,0.00015068,2]
[323029735,1713605440324,-500.0,0.00015068,2]
[323029737,1713605440336,-500.0,0.00015068,2]
[323029740,1713605440354,-500.0,0.00015068,2]
[323029742,1713605440366,-500.0,0.00015068,2]
[323029745,1713605440382,-500.0,0.00015068,2]
[323029747,1713605440393,-500.0,0.00015068,2]
[323029749,1713605440404,-500.0,0.00015068,2]
[323029751,1713605440415,-500.0,0.00015068,2]
[323029753,1713605440425,-500.0,0.00015068,2]
[323029756,1713605440436,-500.0,0.00015068,2]
[323029758,1713605440448,-500.0,0.00015068,2]
[323029760,1713605440460,-500.0,0.00015068,2]
[323029762,1713605440471,-500.0,0.00015068,2]
[323029765,1713605440489,-500.0,0.00015068,2]
[323029767,1713605440502,-151.0,0.00015068,2]
[323029770,1713605440514,-151.0,0.00015068,2]
[323029772,1713605440525,-500.0,0.00015068,2]
[323029774,1713605440537,-500.0,0.00015068,2]
[323029776,1713605440547,-500.0,0.00015068,2]
[323029777,1713605440558,-151.0,0.00015068,2]
[323029778,1713605440568,-155.442691,0.00015068,2]
[323029779,1713605440580,-500.0,0.00015068,2]
[323029780,1713605440591,-500.0,0.00015068,2]
[323029781,1713605440603,-631.94593006,0.00015068,2]
[323029782,1713605440614,-500.0,0.00015068,2]
[323029783,1713605440627,-500.0,0.00015068,2]
[323029784,1713605440640,-500.0,0.00015068,2]
[323029785,1713605440652,-500.0,0.00015068,2]
[323029786,1713605440662,-500.0,0.00015068,2]
[323029787,1713605440673,-500.0,0.00015068,2]
[323029788,1713605440683,-500.0,0.00015068,2]
[323029789,1713605440693,-500.0,0.00015068,2]
[323029790,1713605440703,-500.0,0.00015068,2]
[323029791,1713605440714,-500.0,0.00015068,2]
[323029792,1713605440727,-504.8,0.00015068,2]
[323029793,1713605440739,-500.0,0.00015068,2]
[323029794,1713605440750,-500.0,0.00015068,2]
[323029795,1713605440763,-500.0,0.00015068,2]
[323029796,1713605440783,-533.5,0.00015068,2]
[323029797,1713605440794,-500.0,0.00015068,2]
[323029798,1713605440806,-500.0,0.00015068,2]
[323029799,1713605440817,-500.0,0.00015068,2]
[323029800,1713605440830,-500.0,0.00015068,2]
[323029801,1713605440842,-500.0,0.00015068,2]
[323029802,1713605440853,-500.0,0.00015068,2]
[323029803,1713605440866,-500.0,0.00015068,2]
[323029804,1713605440877,-500.0,0.00015068,2]
[323029805,1713605440889,-500.0,0.00015068,2]
[323029806,1713605440899,-550.87,0.00015068,2]
[323029807,1713605440911,-608.55,0.00015068,2]
[323029808,1713605440922,-500.0,0.00015068,2]
[323029809,1713605440934,-500.0,0.00015068,2]
[323029810,1713605440944,-545.72,0.00015068,2]
[323029811,1713605440956,-500.0,0.00015068,2]
[323029812,1713605440967,-500.0,0.00015068,2]
[323029813,1713605440978,-500.0,0.00015068,2]
[323029814,1713605440989,-518.37,0.00015068,2]
[323029815,1713605441000,-500.0,0.00015068,2]
[323029816,1713605441011,-500.0,0.00015068,2]
[323029817,1713605441022,-503.32570621,0.00015068,2]
[323029818,1713605441033,-500.0,0.00015068,2]
[323029819,1713605441045,-500.0,0.00015068,2]
[323029820,1713605441055,-500.0,0.00015068,2]
[323029821,1713605441066,-500.0,0.00015068,2]
[323029822,1713605441078,-500.0,0.00015068,2]
[323029823,1713605441089,-500.0,0.00015068,2]
[323029824,1713605441100,-500.0,0.00015068,2]
[323029825,1713605441111,-500.0,0.00015068,2]
[323029826,1713605441122,-500.0,0.00015068,2]
[323029827,1713605441133,-500.0,0.00015068,2]
[323029828,1713605441144,-500.0,0.00015068,2]
[323029829,1713605441155,-500.0,0.00015068,2]
[323029830,1713605441166,-841.66,0.00015068,2]
[323029831,1713605441177,-500.0,0.00015068,2]
[323029832,1713605441188,-500.0,0.00015068,2]
[323029833,1713605441199,-500.0,0.00015068,2]
[323029834,1713605441210,-500.0,0.00015068,2]
[323029835,1713605441221,-500.0,0.00015068,2]
[323029836,1713605441232,-500.0,0.00015068,2]
[323029837,1713605441245,-500.0,0.00015068,2]
[323029838,1713605441257,-500.0,0.00015068,2]
[323029839,1713605441268,-500.0,0.00015068,2]
[323029840,1713605441278,-500.0,0.00015068,2]
[323029841,1713605441289,-500.0,0.00015068,2]
[323029842,1713605441300,-500.0,0.00015068,2]
[323029843,1713605441311,-500.0,0.00015068,2]
[323029844,1713605441323,-500.0,0.00015068,2]
[323029845,1713605441334,-500.0,0.00015068,2]
[323029846,1713605441345,-500.0,0.00015068,2]
[323029847,1713605441357,-500.0,0.00015068,2]
[323029848,1713605441369,-150.0,0.00015068,2]
[323029849,1713605441381,-500.0,0.00015068,2]
[323029850,1713605441392,-500.0,0.00015068,2]
[323029851,1713605441403,-500.0,0.00015068,2]
[323029852,1713605441415,-500.0,0.00015068,2]
[323029853,1713605441426,-500.0,0.00015068,2]
[323029854,1713605441437,-239.664402,0.00015068,2]
[323029855,1713605441450,-500.0,0.00015068,2]
[323029856,1713605441462,-500.0,0.00015068,2]
[323029857,1713605441474,-500.0,0.00015068,2]
[323029858,1713605441485,-500.0,0.00015068,2]
[323029859,1713605441496,-500.0,0.00015068,2]
[323029860,1713605441507,-504.72399977,0.00015068,2]
[323029861,1713605441518,-500.0,0.00015068,2]
[323029862,1713605441529,-500.0,0.00015068,2]
[323029863,1713605441540,-500.0,0.00015068,2]
[323029864,1713605441551,-500.0,0.00015068,2]
[323029865,1713605441563,-500.0,0.00015068,2]
[323029866,1713605441574,-500.0,0.00015068,2]
[323029867,1713605441584,-500.0,0.00015068,2]
[323029868,1713605441595,-500.0,0.00015068,2]
[323029869,1713605441606,-500.0,0.00015068,2]
[323029870,1713605441617,-252.3487112,0.00015068,2]
[323029871,1713605441628,-500.0,0.00015068,2]
[323029872,1713605441639,-500.0,0.00015068,2]
[323029873,1713605441650,-500.0,0.00015068,2]
[323029874,1713605441661,-666.64,0.00015068,2]
[323029875,1713605441672,-500.0,0.00015068,2]
[323029876,1713605441683,-500.0,0.00015068,2]
[323029877,1713605441694,-500.0,0.00015068,2]
[323029878,1713605441706,-500.0,0.00015068,2]
[323029879,1713605441717,-500.0,0.00015068,2]
[323029880,1713605441728,-183.61222516,0.00015068,2]
[323029881,1713605441739,-500.0,0.00015068,2]
[323029882,1713605441750,-500.0,0.00015068,2]
[323029883,1713605441761,-500.0,0.00015068,2]
[323029884,1713605441772,-500.0,0.00015068,2]
[323029885,1713605441785,-504.19523458,0.00015068,2]
[323029886,1713605441796,-500.0,0.00015068,2]
[323029887,1713605441806,-500.0,0.00015068,2]
[323029888,1713605441817,-500.0,0.00015068,2]
[323029889,1713605441828,-500.0,0.00015068,2]
[323029890,1713605441839,-500.0,0.00015068,2]
[323029891,1713605441850,-500.0,0.00015068,2]
[323029892,1713605441861,-500.0,0.00015068,2]
[323029893,1713605441872,-500.0,0.00015068,2]
[323029894,1713605441882,-500.0,0.00015068,2]
[323029895,1713605441893,-500.0,0.00015068,2]
[323029896,1713605441904,-155.690976,0.00015068,2]
[323029897,1713605441914,-500.0,0.00015068,2]
[323029898,1713605441925,-500.0,0.00015068,2]
[323029899,1713605441936,-500.0,0.00015068,2]
[323029900,1713605441946,-500.0,0.00015068,2]
[323029901,1713605441958,-500.0,0.00015068,2]
[323029902,1713605441968,-500.0,0.00015068,2]
[323029903,1713605441979,-500.0,0.00015068,2]
[323029904,1713605441990,-260.84049601,0.00015068,2]
[323029905,1713605442001,-500.0,0.00015068,2]
[323029906,1713605442012,-500.0,0.00015068,2]
[323029907,1713605442023,-500.0,0.00015068,2]
[323029908,1713605442033,-500.0,0.00015068,2]
[323029909,1713605442044,-500.0,0.00015068,2]
[323029910,1713605442054,-754.19,0.00015068,2]
[323029911,1713605442065,-556.79,0.00015068,2]
[323029912,1713605442076,-500.0,0.00015068,2]
[323029913,1713605442087,-500.0,0.00015068,2]
[323029914,1713605442098,-151.0,0.00015068,2]
[323029915,1713605442109,-625.43948035,0.00015068,2]
[323029916,1713605442119,-151.0,0.00015068,2]
[323029917,1713605442130,-500.0,0.00015068,2]
[323029918,1713605442140,-500.0,0.00015068,2]
[323029919,1713605442151,-500.0,0.00015068,2]
[323029920,1713605442162,-500.0,0.00015068,2]
[323029921,1713605442172,-500.0,0.00015068,2]
[323029922,1713605442182,-500.0,0.00015068,2]
[323029923,1713605442193,-165.99476067,0.00015068,2]
[323029924,1713605442203,-662.39,0.00015068,2]
[323029925,1713605442214,-500.0,0.00015068,2]
[323029926,1713605442224,-564.16,0.00015068,2]
[323029927,1713605442234,-866.23,0.00015068,2]
[323029928,1713605442245,-500.0,0.00015068,2]
[323029929,1713605442256,-500.0,0.00015068,2]
[323029930,1713605442267,-651.52,0.00015068,2]
[323029931,1713605442277,-500.0,0.00015068,2]
[323029932,1713605442288,-500.0,0.00015068,2]
[323029933,1713605442298,-500.0,0.00015068,2]
[323029934,1713605442308,-500.0,0.00015068,2]
[323029935,1713605442319,-754.22,0.00015068,2]
[323029936,1713605442330,-500.0,0.00015068,2]
[323029937,1713605442340,-500.0,0.00015068,2]
[323029938,1713605442350,-500.0,0.00015068,2]
[323029939,1713605442360,-500.0,0.00015068,2]
[323029940,1713605442373,-500.0,0.00015068,2]
[323029941,1713605442383,-500.0,0.00015068,2]
[323029942,1713605442393,-532.45,0.00015068,2]
[323029943,1713605442403,-500.0,0.00015068,2]
[323029944,1713605442414,-500.0,0.00015068,2]
[323029945,1713605442425,-733.22,0.00015068,2]
[323029946,1713605442435,-500.0,0.00015068,2]
[323029947,1713605442447,-761.02,0.00015068,2]
[323029948,1713605442457,-500.0,0.00015068,2]
[323029949,1713605442467,-500.0,0.00015068,2]
[323029950,1713605442478,-632.72,0.00015068,2]
[323029951,1713605442488,-500.0,0.00015068,2]
[323029952,1713605442499,-500.0,0.00015068,2]
[323029953,1713605442509,-500.0,0.00015068,2]
[323029954,1713605442519,-524.7,0.00015068,2]
[323029955,1713605442529,-500.0,0.00015068,2]
[323029956,1713605442540,-151.0,0.00015068,2]
[323029957,1713605442550,-500.0,0.00015068,2]
[323029958,1713605442560,-412.43503966,0.00015068,2]
[323029960,1713605442570,-151.0,0.00015068,2]
[323029962,1713605442582,-804.15,0.00015068,2]
[323029964,1713605442592,-500.0,0.00015068,2]
[323029966,1713605442602,-764.3,0.00015068,2]
[323029968,1713605442613,-500.0,0.00015068,2]
[323029970,1713605442623,-500.0,0.00015068,2]
[323029972,1713605442634,-151.0,0.00015068,2]
[323029974,1713605442644,-151.0,0.00015068,2]
[323029976,1713605442654,-151.0,0.00015068,2]
[323029979,1713605442665,-151.0,0.00015068,2]
[323029981,1713605442675,-500.0,0.00015068,2]
[323029983,1713605442686,-500.0,0.00015068,2]
[323029985,1713605442696,-500.0,0.00015068,2]
[323029987,1713605442706,-500.0,0.00015068,2]
[323029989,1713605442717,-500.0,0.00015068,2]
[323029991,1713605442727,-1045.1,0.00015068,2]
[323029992,1713605442737,-500.0,0.00015068,2]
[323029993,1713605442747,-500.0,0.00015068,2]
[323029994,1713605442757,-500.0,0.00015068,2]
[323029995,1713605442767,-500.0,0.00015068,2]
[323029996,1713605442777,-500.0,0.00015068,2]
[323029997,1713605442787,-500.0,0.00015068,2]
[323029998,1713605442797,-698.88,0.00015068,2]
[323029999,1713605442808,-1223.57,0.00015068,2]
[323030000,1713605442818,-654.53,0.00015068,2]
[323030001,1713605442829,-557.19,0.00015068,2]
[323030002,1713605442839,-510.52,0.00015068,2]
[323030003,1713605442849,-500.0,0.00015068,2]
[323030004,1713605442859,-518.85,0.00015068,2]
[323030005,1713605442870,-500.0,0.00015068,2]